Cogmind - Beta 15 X1 @@@ ROGUE MODE // 2024.11.06 @ 21:42:30 Player: Jay Result: Core destroyed Performance ------------- Evolutions (1) 500 Regions Visited (4) 800 Robots Destroyed (51) 255 Value Destroyed (885) 885 Prototype IDs (2) 40 Alien Tech Used (0) 0 Bonus (0) 0 TOTAL SCORE: 2480 Bonus ------- None Cogmind --------- Core Integrity 0/400 Matter 300/300 Energy 100/100 System Corruption 5% Temperature Critical (574) Movement Walking (190) Ox1 Location -9/Storage Parts ------- > --- POWER (1) -------- (None) > --- PROPULSION (2) --- Aluminum Leg Improved Aluminum Leg > --- UTILITY (3) ------ Small Storage Unit Hardened Light Armor Plating Hardened Light Armor Plating > --- WEAPON (3) ------- Particle Cannon Heavy Assault Rifle Heavy Mace > --- INVENTORY (8) ---- Light Ion Engine Light Ion Engine Visual Processing Unit Improved Targeting Computer Propulsion Shielding Beam Rifle Beam Rifle Beam Rifle Peak State ------------ > --- POWER ------------ Light Ion Engine > --- PROPULSION ------- Aluminum Leg Improved Aluminum Leg > --- UTILITY ---------- Small Storage Unit Hardened Light Armor Plating Hardened Light Armor Plating > --- WEAPON ----------- Particle Cannon Heavy Assault Rifle Heavy Mace > --- INVENTORY -------- Light Ion Engine Light Ion Engine Visual Processing Unit Improved Targeting Computer Propulsion Shielding Beam Rifle Beam Rifle Beam Rifle [Rating: 17] Favorites ----------- Power Ion Engine Engine Ion Engine Propulsion Light Treads Treads Light Treads Leg Improved Aluminum Leg Utility Small Storage Unit Device Improved Heat Sink Storage Small Storage Unit Protection Hardened Light Armor Plating Weapon Light Assault Rifle Energy Gun Small Laser Energy Cannon Particle Cannon Ballistic Gun Light Assault Rifle Impact Weapon Heavy Mace Build | -11 -10 -10 -9 -9 ------- Run | Yrd Mat Min Mat Sto Slots Evolved 2 | . . . 2 . Power . | . . . . . Propulsion . | . . . . . Utility 1 | . . . 1 . Weapon 1 | . . . 1 . Parts Attached 30 | 7 1 2 16 4 Power 8 | 1 . 1 5 1 Engine 8 | 1 . 1 5 1 Core . | . . . . . Reactor . | . . . . . Propulsion 5 | 2 . . 2 1 Treads 2 | 2 . . . . Leg 3 | . . . 2 1 Wheel . | . . . . . Hover . | . . . . . Flight . | . . . . . Utility 7 | 2 1 . 3 1 Device 2 | . . . 2 . Storage 3 | 2 1 . . . Processor . | . . . . . Hackware . | . . . . . Protection 2 | . . . 1 1 Artifact . | . . . . . Weapon 10 | 2 . 1 6 1 Energy Gun 3 | 1 . 1 1 . Energy Cannon 1 | . . . 1 . Ballistic Gun 4 | 1 . . 2 1 Ballistic Cannon . | . . . . . Launcher . | . . . . . Special Weapon . | . . . . . Impact Weapon 2 | . . . 2 . Slashing Weapon . | . . . . . Piercing Weapon . | . . . . . Special Melee Weapon . | . . . . . Unidentified Prototypes . | . . . . . Parts Lost 11 | . . 1 8 2 Power 3 | . . . 2 1 Propulsion 1 | . . . 1 . Utility 3 | . . . 2 1 Weapon 4 | . . 1 3 . Highest Loss Streak 5 | . . 1 5 1 To Critical Strikes . | . . . . . Average Backups 5 | 2 3 4 6 6 Power 2 | 1 2 2 2 1 Propulsion . | . . . . . Utility 1 | . . . 2 2 Weapon 1 | . 1 1 1 2 Tool/Special . | . . . . . Unused Backups 8 | . . . 2 6 Power 1 | . . . . 1 Propulsion . | . . . . . Utility 3 | . . . . 3 Weapon 4 | . . . 2 2 Tool/Special . | . . . . . Average Slot Usage (%) 94 | . 100 99 93 90 Engine 11 | . 14 14 10 11 Treads 14 | . 28 28 14 . Leg 5 | . . . 3 15 Device 4 | . . . 10 . Storage 21 | . 28 28 22 11 Protection 4 | . . . . 18 Energy Gun 9 | . 14 13 11 . Energy Cannon 3 | . . . . 11 Ballistic Gun 11 | . 14 14 9 11 Impact Weapon 7 | . . . 9 11 Peak Build Rating 17 | 7 7 7 16 17 Average Rating 11 | 5 6 6 12 14 On Entrance 6 | . 7 7 7 13 Naked Turns . | . . . . . Heaviest Build 28 | 14 15 15 24 28 Greatest Support 40 | 40 40 40 40 23 Greatest Overweight (x) 5 | . . . 5 2 Average Overweight (x) . | . . . . 1 Largest Inventory Capacity 8 | 8 8 8 8 8 Average Capacity 7 | 7 8 8 8 8 Most Carried 8 | 5 4 6 8 8 Average Carried 5 | 2 3 4 6 6 Final Capacity 8 | 8 8 8 8 8 Final Carried 8 | 3 3 6 4 8 Class Distribution -------------------- 87% | Mutant 9% | Gunner Dominant Class ---------------- Mutant | -10/Materials Mutant | -10/Mines Mutant | -9/Materials Mutant | -9/Storage Resources | -11 -10 -10 -9 -9 ----------- Run | Yrd Mat Min Mat Sto Matter Collected 929 | 332 112 43 249 193 Remotely . | . . . . . Salvage Created 1389 | 134 50 222 561 422 Parts 85 | 8 5 21 32 19 Haulers Intercepted . | . . . . . Recyclers Shooed 3 | . . 1 . 2 Parts Field Recycled . | . . . . . Retrieved Matter . | . . . . . Parts Self-Destructed . | . . . . . Prevented . | . . . . . Kills | -11 -10 -10 -9 -9 ------- Run | Yrd Mat Min Mat Sto Combat Hostiles Destroyed 32 | . . 10 14 8 Melee 1 | . . . 1 . Guns 17 | . . 8 7 2 Cannons 6 | . . . . 6 AOE 2 | . . 2 . . Classes Destroyed 9 | 3 . 3 2 1 Worker 8 | 2 2 . 2 2 Builder 2 | . . 1 1 . Tunneler 1 | 1 . . . . Recycler 3 | 1 . . 1 1 Mechanic 1 | . . . . 1 Watcher 4 | . . . 3 1 Swarmer 18 | . . 8 8 2 Grunt 8 | . . 2 3 3 Sentry 6 | . . . 3 3 Best Kill Streak 5 | 2 2 4 5 4 Combat Bots Only 5 | . . 4 5 2 Max Kills in Single Turn 2 | 1 1 1 2 1 Gunslinging . | . . . . . Exploded 1 | . . 1 . . Melee 1 | . . . 1 . Uniques/NPCs Destroyed . | . . . . . Combat | -11 -10 -10 -9 -9 -------- Run | Yrd Mat Min Mat Sto Hostile Shots Fired 328 | . . 39 228 61 Missed 97 | . . 7 78 12 Damage Taken 2447 | . . 317 1423 707 Core 529 | . . 73 282 174 Absorbed by Shields 65 | . . . 65 . Regen/Repaired (Parts) 151 | . . . 151 . Core Remaining (%) 85 | 100 . 70 . . Volleys Fired 130 | 15 2 30 44 39 Largest 3 | 2 2 2 3 2 Hottest 110 | 60 60 70 110 91 Shots Fired 254 | 30 4 55 86 79 Gun 207 | 30 4 55 79 39 Cannon 47 | . . . 7 40 Launcher . | . . . . . Special . | . . . . . Kinetic 127 | 15 2 30 41 39 Thermal 90 | . . 5 45 40 Explosive . | . . . . . Electromagnetic 37 | 15 2 20 . . Robot Hit Streak 14 | 7 4 14 9 6 Robot Miss Streak 5 | 3 . 5 4 4 Penetration Max . | . . . . . Secondary Targets 2 | . . 2 . . Max Gunslinging Chain 1 | . . 1 . . Shots Hit Robots 168 | 18 3 36 69 42 Core Hits 65 | 6 2 18 24 15 Critical Kills . | . . . . . Critical Parts Destroyed 5 | . . . 4 1 Critical Strikes 9 | 1 1 . 6 1 Burn 2 | . . . 2 . Corrupt 2 | 1 1 . . . Smash 5 | . . . 4 1 Melee Attacks 32 | . . . 26 6 Impact 32 | . . . 26 6 Slashing . | . . . . . Piercing . | . . . . . Sneak Attacks 2 | . . . 1 1 Combat Hostiles . | . . . . . Follow-up Attacks 1 | . . . 1 . Damage Inflicted 3009 | 211 35 426 1429 908 Guns 1317 | 211 35 385 464 222 Cannons 552 | . . . 82 470 Explosions 41 | . . 41 . . Melee 1099 | . . . 883 216 Ramming . | . . . . . Kinetic 665 | 58 10 150 225 222 Thermal 894 | . . 103 321 470 Explosive . | . . . . . Electromagnetic 351 | 153 25 173 . . Impact 1099 | . . . 883 216 Slashing . | . . . . . Piercing . | . . . . . Highest Corruption 5 | . . . 2 5 Average Corruption 3 | . . . 2 4 Corruption Purged . | . . . . . Corruption Blocked . | . . . . . Effects 18 | . . . 7 11 Message Errors 5 | . . . 2 3 Matter Fused 5 | . . . 1 4 Heat Flow Errors 1 | . . . . 1 Energy Discharges 3 | . . . 2 1 Parts Rejected 1 | . . . 1 . Data Loss (minor) 1 | . . . 1 . Data Loss (major) 1 | . . . . 1 Misfires 1 | . . . . 1 Overload Shots . | . . . . . Overflow Damage 427 | . . . 283 144 Projectiles . | . . . . . Explosions . | . . . . . Melee 427 | . . . 283 144 Knockbacks 4 | . . . 4 . Impact 4 | . . . 4 . Kinetic . | . . . . . Secondary . | . . . . . Self-Inflicted Damage . | . . . . . Shots . | . . . . . Rammed . | . . . . . Targets Rammed . | . . . . . Kicked . | . . . . . Crushed . | . . . . . Highest Temperature 590 | 40 20 70 114 590 Average Temperature 76 | 18 15 23 39 109 Received Heat Transfer 558 | . . 96 231 231 Effects 5 | . . . . 5 Shutdowns 2 | . . . . 2 Energy Bleed 1 | . . . . 1 Interference 1 | . . . . 1 Damage (core) 1 | . . . . 1 Siege Activations . | . . . . . Martial Activations . | . . . . . Shielding Activations . | . . . . . Robots Disrupted . | . . . . . Combat Hostiles . | . . . . . Robots Corrupted 7 | . . . 6 1 Combat Hostiles 6 | . . . 6 . Parts Fried 13 | . . . 12 1 Impact Corruptions 19 | . . . 15 4 Robots Melted . | . . . . . Combat Hostiles . | . . . . . Parts Melted 1 | . . . . 1 Heat Transferred 1967 | . . 235 881 851 Parts Sabotaged . | . . . . . Parts Stolen . | . . . . . Parts Stripped . | . . . . . Power Chain Reactions 2 | . . 2 . . Alert | -11 -10 -10 -9 -9 ------- Run | Yrd Mat Min Mat Sto Maximum Alert Level . | . . . . . Low Security (%) 100 | 100 100 100 100 100 Level 1 . | . . . . . Level 2 . | . . . . . Level 3 . | . . . . . Level 4 . | . . . . . Level 5 . | . . . . . High Security . | . . . . . Max Security . | . . . . . Peak Influence 151 | 10 10 151 119 125 Initial 35 | . . . 35 9 Average 48 | . . 78 46 47 Influence Increases 1103 | 20 10 291 434 348 Destroy 0b10 Robot/C 640 | . . 200 280 160 Destroy 0b10 Robot/NC 95 | 20 10 5 35 25 Destroy Leader 148 | . . 30 76 42 Successful Hack 13 | . . . 13 . Disable Machine 45 | . . 15 . 30 Destroy Structure 12 | . . 11 . 1 Lose Combat Pursuer 150 | . . 30 30 90 Influence Decreases 920 | 20 10 200 445 245 Time Decay 741 | 20 10 190 286 235 Lost Part 87 | . . 10 67 10 Purge Threat 92 | . . . 92 . Squads Dispatched 2 | . . . 1 1 Investigation . | . . . . . Extermination . | . . . . . Reinforcement 1 | . . . 1 . Assault . | . . . . . Garrison 1 | . . . . 1 Intercept . | . . . . . Searches Triggered . | . . . . . Construction Impeded . | . . . . . Haulers Reinforced . | . . . . . Active Scanning Responses . | . . . . . Cargo Convoy Interrupts . | . . . . . Stealth | -11 -10 -10 -9 -9 --------- Run | Yrd Mat Min Mat Sto Distress Signals 5 | . . . 2 3 Communications Jammed . | . . . . . Distress Signals . | . . . . . Times Spotted 58 | . 2 11 27 18 Peak Tracking Total 8 | . 2 3 8 5 Tactical Retreats 7 | . . 1 2 4 Traps | -11 -10 -10 -9 -9 ------- Run | Yrd Mat Min Mat Sto Traps Triggered 3 | . . . 1 2 Indirectly . | . . . . . Trap Hack Attempts . | . . . . . Triggered . | . . . . . Disarmed . | . . . . . Reprogrammed . | . . . . . Reused . | . . . . . Traps Extracted . | . . . . . Installed . | . . . . . Triggered . | . . . . . Machines | -11 -10 -10 -9 -9 ---------- Run | Yrd Mat Min Mat Sto Machines Disabled 3 | . . 1 . 2 Max in Single Turn 1 | . . 1 . 1 Machines Repaired . | . . . . . Machines Dismantled . | . . . . . Machines Sabotaged . | . . . . . Overloaded Fab Kills . | . . . . . Hacking | -11 -10 -10 -9 -9 --------- Run | Yrd Mat Min Mat Sto Machines Accessed 3 | . . . 3 . Terminals 2 | . . . 2 . Fabricators . | . . . . . Repair Stations 1 | . . . 1 . Recycling Units . | . . . . . Scanalyzers . | . . . . . Garrison Access . | . . . . . Total Hacks 14 | . . . 14 . Successful 11 | . . . 11 . Failed 3 | . . . 3 . Catastrophic . | . . . . . Database Lockouts . | . . . . . Manual . | . . . . . Terminals 8 | . . . 8 . Fabricators . | . . . . . Repair Stations 6 | . . . 6 . Recycling Units . | . . . . . Scanalyzers . | . . . . . Garrison Access . | . . . . . Terminal Hacks 5 | . . . 5 . Record 1 | . . . 1 . Prototype ID Bank 1 | . . . 1 . Recycling Unit Index 1 | . . . 1 . Alert Level 1 | . . . 1 . Unreport Threat 1 | . . . 1 . Fabricator Hacks . | . . . . . Repair Station Hacks 6 | . . . 6 . Scan Component 3 | . . . 3 . Repair 3 | . . . 3 . Recycling Unit Hacks . | . . . . . Scanalyzer . | . . . . . Garrison Access Hacks . | . . . . . Unauthorized Hacks . | . . . . . Terminals . | . . . . . Fabricators . | . . . . . Repair Stations . | . . . . . Recycling Units . | . . . . . Scanalyzers . | . . . . . Garrison Access . | . . . . . Data Cores Recovered . | . . . . . Used . | . . . . . Hacking Detections 2 | . . . 2 . Full Trace Events 1 | . . . 1 . Feedback Events . | . . . . . Feedback Blocked . | . . . . . Robot Schematics Acquired . | . . . . . Robots Built . | . . . . . Authchips . | . . . . . Time . | . . . . . Total Robot Build Rating . | . . . . . Part Schematics Acquired . | . . . . . Parts Built . | . . . . . Authchips . | . . . . . Time . | . . . . . Total Part Build Rating . | . . . . . Parts Repaired 3 | . . . 3 . Time 78 | . . . 78 . Parts Recycled . | . . . . . Recycled Matter . | . . . . . Retrieved Matter . | . . . . . Retrieved Components . | . . . . . Parts Scanalyzed . | . . . . . Part Schematics Acquired . | . . . . . Parts Damaged . | . . . . . Bothacking | -11 -10 -10 -9 -9 ------------ Run | Yrd Mat Min Mat Sto Used RIF Installer . | . . . . . Robots Hacked . | . . . . . Non-combat . | . . . . . Combat . | . . . . . Robot Hacks Applied . | . . . . . Relay Couplers Released . | . . . . . Fabnet Peak Effective % . | . . . . . Robots Rewired . | . . . . . Allies Hacked . | . . . . . Hacks Repelled . | . . . . . Allies | -11 -10 -10 -9 -9 -------- Run | Yrd Mat Min Mat Sto Total Allies . | . . . . . Largest Group . | . . . . . Highest-Rated Group . | . . . . . Highest-Rated Ally . | . . . . . Total Orders . | . . . . . Ally Attacks . | . . . . . Total Damage . | . . . . . Kills . | . . . . . Allies Corrupted . | . . . . . Allies Melted . | . . . . . Intel | -11 -10 -10 -9 -9 ------- Run | Yrd Mat Min Mat Sto Active Infowar (turns) . | . . . . . Robot Analysis Total . | . . . . . Derelict Logs Recovered 2 | . . 2 . . Drone Launches . | . . . . . Drone Recoveries . | . . . . . Exploration | -11 -10 -10 -9 -9 ------------- Run | Yrd Mat Min Mat Sto Turns Passed 2274 | 150 95 482 1012 535 Spaces Moved 871 | 65 55 229 337 185 Core 19 | 12 . . 7 . Treads 584 | 53 55 229 247 . Legs 268 | . . . 83 185 Wheels . | . . . . . Hover . | . . . . . Flight . | . . . . . Fastest Speed 50 | 50 160 160 120 190 Average Speed 170 | 139 160 160 165 205 Slowest Speed 300 | 160 160 160 300 260 Overloaded Moves . | . . . . . Propulsion Burnouts . | . . . . . Robots Hopped . | . . . . . Cave-ins Triggered . | . . . . . Exploration Rate (%) 27 | 5 10 57 35 32 Regions Visited 4 Branch Regions 2 Pre-discovered Areas 2 | . . 2 . . Known Exits Taken . | . . . . . Unknown Exits Taken 4 | 1 1 1 1 . Scrap Searched 1 | . . 1 . . Spaces Dug . | . . . . . Terrain Destroyed 11 | . . 11 . . Melee . | . . . . . Projectile . | . . . . . AOE 11 | . . 11 . . Terrain Rammed . | . . . . . Walls Destroyed . | . . . . . Machines Disabled . | . . . . . Actions | -11 -10 -10 -9 -9 --------- Run | Yrd Mat Min Mat Sto Total 1383 | 97 59 296 679 252 Wait 263 | 1 . 30 225 7 Move 867 | 64 54 228 336 185 Hop . | . . . . . Pick Up 41 | 10 1 5 18 7 Fast Attach 3 | . . . 1 2 Attach 28 | 7 1 2 16 2 Detach . | . . . . . Swap 6 | . . . 5 1 Drop 14 | . 1 1 9 3 Fire 130 | 15 2 30 44 39 Melee 31 | . . . 25 6 Ram . | . . . . . Kick . | . . . . . Crush . | . . . . . Escape Stasis . | . . . . . Rewire . | . . . . . Trap . | . . . . . Miscellaneous . | . . . . . Route ------- -11/Scrapyard -10/Materials -10/Mines -9/Materials (discovered 2 exits: [*Min] / *Sto) -9/Storage History --------- Turn | Location | Event 27 | -11/Scrapyard | Discovered new exit (range 15) 151 | -11/Scrapyard | Entered Materials 166 | -10/Materials | Discovered new exit (range 16) 246 | -10/Materials | Entered Mines 314 | -10/Mines | Build established: Mutant 324 | -10/Mines | Learned location of Mines (-9) 510 | -10/Mines | Learned Materials stockpile data 548 | -10/Mines | Learned location of Storage (-9) 721 | -10/Mines | Discovered new exit (range 3) 728 | -10/Mines | Entered Materials 728 | -9/Materials | Evolved 2 slots: Utility x1, Weapon x1 771 | -9/Materials | Repaired Lgt. Treads 799 | -9/Materials | Repaired Lgt. Treads 827 | -9/Materials | Repaired Lgt. Assault Rifle 1443 | -9/Materials | Discovered new exit (range 11) 1531 | -9/Materials | Core integrity fell below 50% 1570 | -9/Materials | Lost 5 parts (1p1n1u2w) 1683 | -9/Materials | Discovered new exit (range 4) 1740 | -9/Materials | Entered Storage 1874 | -9/Storage | Core integrity fell below 20% 2205 | -9/Storage | Garrison activated, responded to threat 2276 | -9/Storage | Core destroyed Last Messages --------------- 02261_ K-01 Serf collects debris. 02264_ Power failure, Lgt. Ion Engine shutdown. 02264_ Sneak attack on R-06 Scavenger. 02264_ Destroyed Com. Wheel. 02264_ Destroyed Tractor Beam. 02264_ R-06 Scavenger system corrupted by crushing effect. 02265_ R-06 Scavenger system terminally corrupted. 02265_ K-01 Serf collects debris. 02266_ Acquired 24 matter. 02269_ Acquired 3 matter. 02270_ K-01 Serf collects debris. 02272_ Acquired 3 matter. 02272_ K-01 Serf collects debris. 02273_ Power failure, Lgt. Ion Engine shutdown. 02273_ Overheating: Energy bleed (-22). 02274_ K-01 Serf collects debris. 02274_ Lgt. Ion Engine destroyed. 02275_ Overheating: System interference. 02275_ Particle Cannon temporarily disabled. 02276_ Overheating: Core damaged (-76). Map ----- +----------------------------------------------------+ | ??????# #?# """ """ """ #???????????????????? | | ??????# #?# """ """ """ #???????????????????? | | ??????# #?# """ """ """ #???????????????????? | | ??????# #?# ##??????????????????? | | ??????# #?# % % #??????????????????? | | ??????#+########+#" "#####??????????????????? | | ??????# #%#"Y"#??????????????????????? | | ??????# # #"""#??????????????????????? | | ??????# """""" # ##############+????????????? | | ??????# "!!! " # ^^ ???????????? | | ??????# "! |! %+ ^^ ???????????? | | ??????# "" """ # ???????????? | | ??????# %=% % ###/#+##########?????????????? | | ??????# # #??????????????? | | ??????# # !! #??????????????? | | ??????########## !! #??????????????? | | ???????????????# ! ##?????????????? | | ???????????????# = #?????????????? | | ???????????????# ##?????????????? | | ???????????????#####+#########??????????????? | | ???????????????????#%#??????#???????????????? | | ???????????????????# #????? #???????????????? | | ???????????????????#%#????G"#???????????????? | | ???????????????" ??# ####" "######??????????? | | ???????????????" # T ???????? | | ???????????????" /@/k ???????? | | ???????????????" #Y%k k ???????? | | ???????????????" ??##[ ##+?????????? | | ????????????????????# % "" #???????????? | | ????????????????????# Y = "" #???????????? | | ???????????????????? "" #???????????? | | ???????????????????? ?#???????????? | | ???????????????????? ??????????????? | | ???????????????????? #######+#?????????????? | | ???????????????????? #??????? ?????????????? | | ???????????????????? #???????? ????????????? | | ??????????????????? ?????????? ???????????? | | ???????????????????###??????????????????????? | | ????????????????????????????????????????????? | | ????????????????????????????????????????????? | | ????????????????????????????????????????????? | | ????????????????????????????????????????????? | | ????????????????????????????????????????????? | | ????????????????????????????????????????????? | | ????????????????????????????????????????????? | | ????????????????????????????????????????????? | | ????????????????????????????????????????????? | | ????????????????????????????????????????????? | | | | | +----------------------------------------------------+ Best States ------------- Heat Dissipation 42 Energy Generation 10 Energy Capacity 250 Matter Stores 400 Matter Capacity 400 Sight Range 16 Terrain Scan Density 10 Armor Coverage 300 Evasion (%) 55 Recoil Reduction 2 Item Schematics ----------------- None Robot Schematics ------------------ None Fabricated ------------ Nothing Repaired ---------- Lgt. Treads | 47% | -9/Materials Lgt. Treads | 63% | -9/Materials Lgt. Assault Rifle | 67% | -9/Materials Alien Tech Used ----------------- None Achievements -------------- None Challenges ------------ None Game ------ Seed TargetingTeslaClaws Manual? 0 Play Time 00:27:22 Cumulative 42.2 hours Start 2024.11.06 @ 21:14:35 End 2024.11.06 @ 21:42:30 Sessions 1 Manual Loads 0 Difficulty Rogue Special Mode None Game No. 75 Rogue 63 Adventurer 12 Explorer 0 Win Type - Total 0 Types 0/0/0/0/0/0/0/0/0 Lore% 8 Gallery% 22 Achievement% 19 Wizard Run 0 Options --------- Layout 0 ASCII 0 Keyboard 0 Movement Mouse Keybinds 0 Fullscreen 2 Font 18/SmallcapsGlow Map View 38x25 Zoom Use 99% Tactical HUD 1 Map Filters NONE Filters NONE Steam 1 RUN: d03887e8-b963-4524-a6c6-b407f2bc1e3e